[Event "European Women-ch 2023"]
[Site "Petrovac"]
[Date "2023.03.19"]
[Round "2.12"]
[White "Maras, Marija Mia"]
[Black "Klek, Hanna Marie"]
[Result "0-1"]
[ECO "A25"]
[WhiteElo "1051"]
[BlackElo "2314"]
[Annotator "TA"]
[PlyCount "62"]
[EventDate "2023.03.15"]
[EventType "swiss"]
[EventCountry "MNE"]
[SourceTitle "playchess.com"]
[Source "ChessBase"]
[SourceQuality "1"]
[TimeControl "40/5400+30:1800+30"]

{[%evp 9,62,4,12,12,17,5,18,18,15,20,17,-5,38,0,0,-5,23,15,41,39,76,25,30,12,36,-18,6,-37,-28,-106,-112,-96,-103,-126,-71,-140,-146,-143,-137,-160,-142,-205,-193,-303,-163,-167,-156,-193,-163,-161,-146,-192,-195,-2397,-2327]} 1. c4 {[%emt 0:00:01]} e5 {[%emt 0:00:11]} 2. Nc3 {[%emt 0:00:04]} Nc6 {[%emt 0:00:07]} 3. g3 {[%emt 0:00:06]} Bc5 {[%emt 0:00:12]} 4. Ne4 {[%emt 0:00:53]} Be7 {[%emt 0:00:26]} 5. Bg2 {[%emt 0:00:54]} f5 {[%emt 0:00:18]} 6. Nc3 {[%emt 0:00:26] A25: English Opening vs King's Indian with ...Nc6 but without early d3.} Nf6 {[%emt 0:00:13] [#]} 7. e3 $146 {[%emt 0:00:24]} ({Predecessor:} 7. d3 Bc5 8. Na4 Bb4+ 9. Bd2 Qe7 10. a3 Bxd2+ 11. Qxd2 Nd4 12. Qd1 c6 13. e3 Ne6 14. Nc3 Nc7 15. Nge2 O-O {1-0 Thomasson,S (1921)-Seepe,U (1662) Vellmar op 9th 2017 (5)}) 7... d6 {[%emt 0:01:43]} (7... d5 $5) 8. Nge2 {[%emt 0:00:16] The position is equal.} O-O {[%emt 0:02:01]} 9. Nd5 {[%emt 0:02:52]} a5 {[%emt 0:06:13]} 10. d3 {[%emt 0:03:54]} Be6 {[%emt 0:03:01]} 11. e4 {[%emt 0:01:17]} fxe4 {[%emt 0:01:34]} 12. dxe4 {[%emt 0:00:12]} Bg4 {[%emt 0:02:00][%cal Oc6d4]} 13. Be3 {[%emt 0:05:27] Repels Nd4} Kh8 {[%emt 0:02:48]} 14. O-O {[%emt 0:05:24]} Qd7 {[%emt 0:02:15]} 15. Re1 {[%emt 0:02:06]} (15. f3 $16 {Hoping for Nxf6.} Be6 16. Nec3) 15... Rf7 {[%emt 0:01:37]} 16. Qd2 {[%emt 0:02:22]} Raf8 {[%emt 0:01:28][%cal Oc6b4]} 17. f4 {[%emt 0:03:36]} (17. f3 $14 Bh3 18. Rad1 (18. Bxh3 Qxh3 19. Nxc7 Nh5 $15)) 17... exf4 {[%emt 0:03:56]} (17... Bh3 $5 {[%cal Rh3g2]}) 18. Nexf4 {[%emt 0:01:51]} Ne5 {[%emt 0:00:29]} 19. Rf1 {[%emt 0:00:44] Wards off Nf3+} (19. Bd4 $11 {keeps the balance.}) 19... Nxc4 $17 {[%emt 0:00:21]} 20. Qc3 {[%emt 0:01:29]} Nxd5 {[%emt 0:06:35]} 21. Nxd5 {[%emt 0:01:42] [#] Rxf7 is the strong threat.} Nxe3 {[%emt 0:01:51]} (21... Rxf1+ $142 22. Rxf1 Rxf1+ 23. Bxf1 Nxe3 24. Nxe7 Qxe7 25. Qxe3 h6) 22. Qxe3 {[%emt 0:03:46]} ({White should try} 22. Rxf7 Rxf7 23. Nxe3) 22... Bd8 {[%emt 0:03:23]} 23. Rxf7 {[%emt 0:01:35]} Rxf7 {[%emt 0:00:07]} 24. Rf1 {[%emt 0:02:59]} c6 {[%emt 0:02:00]} 25. Rxf7 {[%emt 0:02:08]} (25. Nf4 $17) 25... Qxf7 $19 {[%emt 0:00:07]} 26. Nf4 {[%emt 0:00:06]} (26. Nc3 {keeps fighting.}) 26... Bf6 {[%emt 0:05:56]} (26... Qxa2 $142 27. h3 Qxb2) 27. b3 {[%emt 0:01:40] [#]} a4 $1 {[%emt 0:02:20][%mdl 512]} 28. h3 {[%emt 0:00:52]} (28. Bh3 Bxh3) 28... axb3 {[%emt 0:01:18]} 29. axb3 {[%emt 0:00:36]} Bd1 {[%emt 0:02:10] This pair of bishops is nice.} 30. b4 {[%emt 0:01:37]} (30. Qa7 $17) 30... Qc4 {[%emt 0:02:26][%cal Of6d4] Threatens to win with ...Bd4!} 31. Qa7 {[%emt 0:00:20]} (31. Qa3) 31... Bd4+ {[%emt 0:00:08] Weighted Error Value: White=0.57/Black=0.21 (precise)} (31... Qxb4 $2 {gets mated.} 32. Qb8+) 0-1

[Event "European Women-ch 2023"]
[Site "Petrovac"]
[Date "2023.03.19"]
[Round "2.13"]
[White "Garcia Martin, Marta"]
[Black "Kobak, Polina"]
[Result "1-0"]
[ECO "B30"]
[WhiteElo "2306"]
[BlackElo "1815"]
[Annotator "TA"]
[PlyCount "83"]
[EventDate "2023.03.15"]
[EventType "swiss"]
[EventCountry "MNE"]
[SourceTitle "playchess.com"]
[Source "ChessBase"]
[SourceQuality "1"]
[TimeControl "40/5400+30:1800+30"]

{[%evp 10,83,12,7,18,14,10,17,10,22,20,30,32,17,21,11,20,24,28,33,43,20,31,35,50,42,58,72,64,59,91,98,114,88,78,81,78,85,136,134,248,292,387,212,220,222,214,100,98,96,104,72,105,87,260,260,317,256,267,251,368,368,364,362,359,354,354,354,354,270,270,270,270,270,270,260]} 1. e4 {[%emt 0:00:04]} c5 {[%emt 0:00:07]} 2. Nf3 {[%emt 0:00:06]} Nc6 {[%emt 0:00:06]} 3. Bb5 {[%emt 0:00:25]} e6 {[%emt 0:00:06]} 4. Bxc6 {[%emt 0:01:12]} bxc6 {[%emt 0:00:05]} 5. d3 {[%emt 0:00:10]} Ne7 {[%emt 0:00:21]} 6. Qe2 {[%emt 0:00:44]} d6 {[%emt 0:00:20] B30: Sicilian: 2...Nc6 3 Bb5, lines without ...g6.} 7. O-O {[%emt 0:03:16]} e5 {[%emt 0:03:55]} 8. c3 {[%emt 0:01:28]} Ng6 {[%emt 0:01:19] The position is equal.} 9. d4 {[%emt 0:20:41]} cxd4 {[%emt 0:07:27]} 10. cxd4 {[%emt 0:00:04]} Be7 {[%emt 0:02:20]} 11. dxe5 {[%emt 0:09:41]} dxe5 {[%emt 0:02:20]} 12. Be3 {[%emt 0:04:30]} O-O {[%emt 0:05:14]} 13. Qc2 {[%emt 0:03:41]} Ba6 {[%emt 0:16:38]} 14. Rd1 {[%emt 0:00:45]} Qa5 {[%emt 0:02:45]} 15. Nbd2 {[%emt 0:07:48][%cal Bb1d2,Bd2b3,Bb3a5,Ba5c4,Bc4b6,Bb6d5][%mdl 32] [#]} Be2 $146 {[%emt 0:28:13] This pair of bishops is nice.} ({Predecessor:} 15... Rfd8 16. Nb3 Qa4 17. g3 Bb5 18. Ne1 Qc4 19. Qxc4 Bxc4 20. Nd2 Be6 21. Rdc1 Bb4 {1-0 Krantz,C (2233)-Karlsson,U (1978) Malmo op 2013 (2)}) 16. Rdc1 {[%emt 0:00:38]} Rab8 {[%emt 0:02:42]} 17. Nb3 {[%emt 0:10:14]} Qa6 {[%emt 0:01:49]} 18. Qxc6 {[%emt 0:00:19]} Qxc6 {[%emt 0:01:05]} 19. Rxc6 {[%emt 0:00:04]} a5 {[%emt 0:00:48]} 20. Nxa5 {[%emt 0:05:44]} Rxb2 {[%emt 0:01:47]} 21. Nc4 {[%emt 0:02:27]} Rb4 {[%emt 0:08:10]} 22. Nfd2 {[%emt 0:04:42] aiming for a4. White is more active.} ({Much worse is} 22. Ncxe5 Nxe5 23. Nxe5 Rxe4 $11) 22... Ra8 {[%emt 0:02:57]} 23. Nb6 {[%emt 0:05:50] Prevents Rba4} Rd8 {[%emt 0:04:13]} ({Better is} 23... Ra6) 24. a4 {[%emt 0:02:53][%cal Ba2a4,Ba4a5][%mdl 32] Strongly threatening Nd5.} h6 {[%emt 0:02:38]} (24... Rd6 $16 {was worth a try.} 25. Rac1 Rxc6 26. Rxc6 f6 27. Rc8+ Kf7) 25. Nd5 $18 {[%emt 0:05:12]} Rb7 {[%emt 0:01:05]} 26. Bb6 {[%emt 0:09:08]} (26. a5 $142) 26... Ra8 {[%emt 0:01:39] [#]} 27. a5 $1 {[%emt 0:00:29]} Bd8 {[%emt 0:01:06]} 28. Nb3 {[%emt 0:01:42]} (28. Bxd8 $18 {has better winning chances.} Rxd8 29. a6) 28... Ne7 $16 {[%emt 0:01:14]} 29. Nxe7+ {[%emt 0:00:22]} Bxe7 {[%emt 0:00:28]} 30. Rac1 {[%emt 0:00:32]} Kh7 {[%emt 0:01:18]} 31. h3 {[%emt 0:00:36]} Bd8 $2 {[%emt 0:00:26] [#] This costs Black the game.} (31... Bb4 $16 {might work better.}) 32. Nc5 $18 {[%emt 0:00:26]} Re7 {[%emt 0:00:44]} 33. Bxd8 {[%emt 0:00:34]} Rxd8 {[%emt 0:00:05]} 34. a6 {[%emt 0:00:12] Rb1 is the strong threat.} Ra7 {[%emt 0:00:12]} (34... Rb8 $142 35. Re1 Rb2) 35. Rb1 {[%emt 0:00:24]} Rda8 {[%emt 0:00:56][%cal Re2a6]} 36. Rb7 {[%emt 0:00:24]} Kg8 {[%emt 0:01:02]} 37. Rcc7 {[%emt 0:00:59][%csl LRa7,LRf7]} Rxa6 {[%emt 0:00:10]} 38. Nxa6 {[%emt 0:00:11]} ({Less strong is} 38. Rxf7 Rg6 39. Rbe7 Rc8 $18) 38... Bxa6 {[%emt 0:00:04]} 39. Ra7 {[%emt 0:00:40]} Rxa7 {[%emt 0:00:04] White has a decisive advantage.} 40. Rxa7 {[%emt 0:00:00]} Bc4 {[%emt 0:00:00]} 41. h4 {[%emt 0:03:52]} f6 {[%emt 0:01:50]} 42. f3 {[%emt 0:02:29] Weighted Error Value: White=0.17 (very precise) /Black=0.23 (precise)} 1-0

[Event "European Women-ch 2023"]
[Site "Petrovac"]
[Date "2023.03.19"]
[Round "2.13"]
[White "Radeva, Viktoria"]
[Black "Mkrtchian, Lilit"]
[Result "1/2-1/2"]
[ECO "B11"]
[WhiteElo "2247"]
[BlackElo "2379"]
[Annotator "TA"]
[PlyCount "34"]
[EventDate "2023.03.15"]
[EventType "swiss"]
[EventCountry "MNE"]
[SourceTitle "playchess.com"]
[Source "ChessBase"]
[SourceQuality "1"]
[TimeControl "40/5400+30:1800+30"]

{[%evp 10,34,10,15,18,12,57,8,8,3,21,14,14,12,14,2,20,18,9,9,17,0,7,-37,0,-5,0]} 1. e4 {[%emt 0:00:03]} c6 {[%emt 0:00:23]} 2. Nc3 {[%emt 0:00:06]} d5 {[%emt 0:00:22]} 3. Nf3 {[%emt 0:00:04]} Bg4 {[%emt 0:00:36]} 4. h3 {[%emt 0:00:04]} Bxf3 {[%emt 0:00:29]} 5. Qxf3 {[%emt 0:00:04]} e6 {[%emt 0:00:24]} 6. Be2 {[%emt 0:00:07]} d4 {[%emt 0:00:53] B11: Caro-Kann: Two Knights Variation.} 7. Nb1 {[%emt 0:00:21]} Bd6 {[%emt 0:00:40]} 8. d3 {[%emt 0:00:46]} (8. Qb3 $14 {feels stronger.}) 8... Ne7 {[%emt 0:00:58] [#]} 9. g3 $146 {[%emt 0:04:48]} ({Predecessor:} 9. Nd2 Bc7 10. Nb3 Ng6 11. c3 h5 12. g3 Ne5 13. Qg2 dxc3 14. d4 cxb2 15. Bxb2 {1-0 Preotu,R (2445)-Idani,P (2641) Olympiad-44 Chennai 2022 (4.3)}) 9... c5 {[%emt 0:17:30]} 10. O-O {[%emt 0:08:17]} Nbc6 {[%emt 0:01:13]} 11. Qg2 {[%emt 0:05:15]} O-O {[%emt 0:24:29]} 12. f4 {[%emt 0:04:52]} f5 {[%emt 0:02:06]} 13. Nd2 {[%emt 0:12:28][%cal Bb1d2,Bd2c4,Bc4a3][%mdl 32]} Qd7 {[%emt 0:08:42]} 14. Bf3 {[%emt 0:06:21]} Bc7 {[%emt 0:08:05]} 15. Nc4 {[%emt 0:11:44]} b5 {[%emt 0:01:23] [#] Strongly threatening ...fxe4.} 16. Na3 {[%emt 0:00:16]} a6 {[%emt 0:01:03]} 17. exf5 {[%emt 0:00:41]} Rxf5 {[%emt 0:07:06] Not much happened in this game.   Weighted Error Value: White=0.10 (very precise) /Black=0.11 (very precise)} 1/2-1/2

[Event "European Women-ch 2023"]
[Site "Petrovac"]
[Date "2023.03.19"]
[Round "2.13"]
[White "Hrescak, Ivana"]
[Black "Petrovska, Katerina"]
[Result "1/2-1/2"]
[ECO "D31"]
[WhiteElo "2127"]
[BlackElo "1907"]
[Annotator "TA"]
[PlyCount "98"]
[EventDate "2023.03.15"]
[EventType "swiss"]
[EventCountry "MNE"]
[SourceTitle "playchess.com"]
[Source "ChessBase"]
[SourceQuality "1"]
[TimeControl "40/5400+30:1800+30"]

{[%evp 9,98,40,25,25,23,19,23,15,27,23,25,31,39,5,31,0,12,-10,36,34,31,24,22,0,34,40,45,46,50,34,54,13,16,0,17,-37,-31,-41,-23,-41,-33,-110,-100,-100,-76,-71,-72,-109,-112,-148,-140,-129,-142,-122,-131,-156,-127,-475,-188,-193,-162,-179,-122,-130,-51,-47,0,-10,0,0,0,0,0,0,0,0,0,-8,0,0,0,0,0,0,0,0,0,0,0,0,0]} 1. d4 {[%emt 0:00:05]} d5 {[%emt 0:00:10]} 2. c4 {[%emt 0:00:08]} e6 {[%emt 0:00:13]} 3. Nc3 {[%emt 0:00:12]} h6 {[%emt 0:00:31]} 4. Bf4 {[%emt 0:06:46]} Bd6 {[%emt 0:02:14]} 5. Bxd6 {[%emt 0:03:01]} Qxd6 {[%emt 0:00:21]} 6. cxd5 {[%emt 0:01:35] D31: Queen's Gambit Declined: Semi-Slav without ...Nf6 (+ Marshall Gambit and Noteboom) and Exchange Variation lines without ...Nf6.} exd5 {[%emt 0:00:26]} 7. Nf3 {[%emt 0:01:46]} Nf6 {[%emt 0:04:43]} 8. Qc2 {[%emt 0:01:38] White has an edge.} Nc6 {[%emt 0:07:52]} 9. a3 {[%emt 0:04:47]} a6 {[%emt 0:01:24]} 10. e3 {[%emt 0:01:17]} Bg4 {[%emt 0:11:59]} 11. Bd3 {[%emt 0:03:57]} O-O {[%emt 0:25:20] [#]} 12. Ne2 $146 {[%emt 0:04:57]} ({Predecessor:} 12. Nd2 Nd8 13. Nb3 b6 14. f3 Be6 15. Ne2 Nb7 16. Rc1 Rfc8 17. Qc6 Qxc6 18. Rxc6 {½-½ Vaganian,R (2548)-Bosiocic,M (2597) Tsaghkadzor op 2017 (4)}) 12... a5 {[%emt 0:07:25]} 13. h3 {[%emt 0:03:36]} Bd7 {[%emt 0:05:05]} (13... Bxf3 $11 14. gxf3 Nd8) 14. Ng3 {[%emt 0:04:31]} Ne7 {[%emt 0:02:36]} 15. O-O {[%emt 0:04:42]} Rfc8 {[%emt 0:00:46]} 16. Qc5 {[%emt 0:03:37]} b6 {[%emt 0:00:54]} 17. Qxd6 {[%emt 0:01:57]} cxd6 {[%emt 0:00:04]} 18. Nd2 {[%emt 0:01:28]} Rc7 {[%emt 0:05:46]} 19. f3 {[%emt 0:05:18]} Rac8 {[%emt 0:02:54]} 20. Rfe1 {[%emt 0:08:15]} h5 {[%emt 0:04:26]} 21. e4 {[%emt 0:03:40]} h4 {[%emt 0:00:46]} 22. e5 {[%emt 0:02:18]} (22. Ne2 $11) 22... dxe5 {[%emt 0:01:50]} 23. dxe5 {[%emt 0:00:09]} Nh7 {[%emt 0:00:43][%cal Bf6h7,Bh7f8,Bf8e6][%mdl 32]} 24. Ne2 {[%emt 0:02:44]} Bf5 $36 {[%emt 0:01:25][%mdl 2048] Black has good play.} 25. Nf4 {[%emt 0:06:58]} (25. Bb1 $15) 25... Bxd3 $17 {[%emt 0:02:45]} 26. Nxd3 {[%emt 0:00:02]} Rc2 {[%emt 0:02:36]} 27. Nf1 {[%emt 0:03:04]} Nf8 {[%emt 0:01:28]} 28. Rad1 {[%emt 0:04:09]} Nf5 {[%emt 0:00:55]} 29. Ne3 {[%emt 0:02:46]} Nxe3 {[%emt 0:00:14]} 30. Rxe3 {[%emt 0:00:02]} Ne6 {[%emt 0:00:24]} 31. f4 {[%emt 0:10:05] [#]} g6 {[%emt 0:00:08]} 32. f5 {[%emt 0:03:06]} gxf5 {[%emt 0:00:22]} 33. g3 $2 {[%emt 0:01:10][%mdl 8192]} (33. Rf3 $17) 33... hxg3 $2 {[%emt 0:01:52]} (33... d4 34. Ree1 Ng5 35. gxh4 Nf3+ 36. Kf1 Nh2+ 37. Kg1 Kh7) 34. Rxg3+ $19 {[%emt 0:00:06]} Kf8 {[%emt 0:00:03]} 35. Rf1 {[%emt 0:01:28] [#]} f4 {[%emt 0:00:29]} 36. Rg4 $17 {[%emt 0:00:28]} Rd2 {[%emt 0:01:56]} (36... R8c4 $17 37. Rf2 Rxf2 38. Kxf2 Re4) 37. Nxf4 $15 {[%emt 0:00:34]} Nxf4 {[%emt 0:00:20]} 38. Rgxf4 {[%emt 0:00:04][%mdl 4096] Endgame KRR-KRR. The position is equal.} Rc7 {[%emt 0:00:30]} 39. e6 {[%emt 0:01:00][%cal Rf4f7]} Rxb2 {[%emt 0:00:46]} 40. Rxf7+ {[%emt 0:00:00]} Rxf7 {[%emt 0:00:00]} 41. Rxf7+ $11 {[%emt 0:04:50] KR-KR} Ke8 {[%emt 0:00:06]} 42. Rd7 {[%emt 0:01:20]} Rb3 {[%emt 0:01:48][%csl LRa3,LRh3]} 43. Rxd5 {[%emt 0:03:38]} Rxh3 {[%emt 0:02:37]} 44. Rb5 {[%emt 0:01:14]} Rxa3 {[%emt 0:00:30]} 45. Rxb6 {[%emt 0:00:47]} Ke7 {[%emt 0:00:20]} 46. Ra6 {[%emt 0:01:11]} Ra1+ {[%emt 0:01:50]} 47. Kf2 {[%emt 0:03:13]} a4 {[%emt 0:00:05]} 48. Ke2 {[%emt 0:01:59]} a3 {[%emt 0:00:29] ( -> ...a2)} 49. Kd2 {[%emt 0:00:58]} a2 {[%emt 0:00:44] Weighted Error Value: White=0.26 (precise) /Black=0.19 (very precise)} 1/2-1/2

[Event "European Women-ch 2023"]
[Site "Petrovac"]
[Date "2023.03.19"]
[Round "2.14"]
[White "Garifullina, Leya"]
[Black "Eric, Jovana"]
[Result "1-0"]
[ECO "C18"]
[WhiteElo "2372"]
[BlackElo "2230"]
[Annotator "TA"]
[PlyCount "101"]
[EventDate "2023.03.15"]
[EventType "swiss"]
[EventCountry "MNE"]
[SourceTitle "playchess.com"]
[Source "ChessBase"]
[SourceQuality "1"]
[TimeControl "40/5400+30:1800+30"]

{[%evp 25,101,37,20,-22,-31,-46,-37,-107,0,-128,0,-12,0,-30,0,0,0,0,0,0,0,0,0,0,0,0,0,0,0,-81,-93,-77,-87,-89,-101,-190,-192,-468,-72,-67,-52,-75,0,0,29,28,16,0,0,0,7,0,118,118,99,77,512,234,1498,1501,1970,1741,1378,1146,1241,1218,2176,1239,1242,1228,1164,1120,7181,6095,12844,12844,12845,12845]} 1. e4 {[%emt 0:00:12]} e6 {[%emt 0:00:10]} 2. d4 {[%emt 0:00:16]} d5 {[%emt 0:00:05]} 3. Nc3 {[%emt 0:00:06]} Bb4 {[%emt 0:00:12]} 4. e5 {[%emt 0:00:13]} c5 {[%emt 0:00:13]} 5. a3 {[%emt 0:00:20]} Bxc3+ {[%emt 0:00:17]} 6. bxc3 {[%emt 0:00:07]} Ne7 {[%emt 0:00:16]} 7. Qg4 {[%emt 0:01:21]} Qc7 {[%emt 0:00:40]} 8. Qxg7 {[%emt 0:00:29]} Rg8 {[%emt 0:00:04]} 9. Qxh7 {[%emt 0:00:12]} cxd4 {[%emt 0:00:12]} 10. Ne2 {[%emt 0:00:07]} Nbc6 {[%emt 0:00:22]} 11. f4 {[%emt 0:00:40]} dxc3 {[%emt 0:00:25]} 12. Qd3 {[%emt 0:00:36]} Bd7 {[%emt 0:00:29]} 13. Nxc3 {[%emt 0:04:59]} a6 {[%emt 0:01:02]} 14. Bb2 {[%emt 0:09:02] 14.Ne2 is becoming the main line. C18: French: 3 Nc3 Bb4: Main line: 7 h4 and 7 Qg4.} Na5 {[%emt 0:07:23][%mdl 1024] Black has compensation.} 15. Qd2 {[%emt 0:03:12]} Nf5 {[%emt 0:05:14]} 16. Qf2 {[%emt 0:09:10] [#]} ({White should try} 16. Bd3 $15) 16... Bc6 $146 {[%emt 0:18:26]} (16... O-O-O $1 $17 {Threatens to win with ...d4.} 17. g4 Rxg4) ({Predecessor:} 16... O-O-O 17. O-O-O d4 18. Ne4 Ba4 19. Kb1 Ne3 20. Rd2 Nac4 21. Bxc4 Rxg2 22. Qxg2 Nxg2 23. Bxe6+ fxe6 24. Rxg2 Bc6 25. Re2 Qh7 26. Nf6 Qf5 27. Rg1 d3 {0-1 Schweizer,G-Koltsov,V ICCF-Cup6/7 sf15 corr 1990}) 17. Bd3 {[%emt 0:10:49]} (17. Rg1 $11 {keeps the balance.}) 17... O-O-O {[%emt 0:06:48]} ({Better is} 17... d4 $1 $17 18. Ne4 O-O-O) 18. Rg1 $11 {[%emt 0:10:40]} d4 {[%emt 0:12:47]} 19. Nd1 {[%emt 0:04:15]} Qb6 {[%emt 0:03:55] Strongly threatening ...Ne3.} 20. Bc1 {[%emt 0:03:14] Dodges Ne3} Rh8 {[%emt 0:06:25]} 21. g4 {[%emt 0:07:03]} Nh4 {[%emt 0:00:09] White must now prevent ...Nf3+.} 22. Rg3 {[%emt 0:00:12] Prevents Nf3+.} Qc5 {[%emt 0:01:00]} 23. Bd2 {[%emt 0:08:08]} Qd5 {[%emt 0:01:53]} 24. h3 {[%emt 0:07:35]} Nc4 $36 {[%emt 0:03:53][%mdl 2048] Black fights for an advantage.} 25. Bb4 $1 {[%emt 0:03:48]} Ne3 {[%emt 0:06:26]} 26. Ke2 {[%emt 0:05:17]} (26. Nxe3 $2 dxe3 27. Qxe3 Qh1+ 28. Rg1 Nf3+ 29. Ke2 Qh2+ 30. Qf2 Nxg1+ 31. Rxg1 Rxh3 32. Qxh2 Rxh2+ 33. Ke3 Rh3+ 34. Kf2 Rf3+ 35. Ke2 Rxf4 $19) 26... Nhg2 {[%emt 0:06:13]} (26... Nc4 $5 {[%cal Rd8d7]}) 27. Bd2 {[%emt 0:05:06] [#]} (27. Nxe3 $11 dxe3 28. Qxg2 Qxg2+ 29. Rxg2 Bxg2 30. Rg1) 27... Nxc2 $1 $17 {[%emt 0:02:27][%mdl 64] Deflection} 28. Rc1 {[%emt 0:02:44]} Nce3 {[%emt 0:02:03] ...Kb8 is the strong threat.} (28... Nxa3 $2 29. Qxg2 (29. Rxg2 Rxh3 30. Rg3 Rdh8 $11) 29... Qxg2+ 30. Rxg2 $18) 29. Qf3 {[%emt 0:03:19][%cal Rd1e3]} Kb8 {[%emt 0:02:13]} 30. Rxc6 {[%emt 0:00:50]} bxc6 $19 {[%emt 0:01:55]} 31. Nb2 $2 {[%emt 0:00:43]} (31. Nxe3 {was necessary.} Qxf3+ 32. Rxf3 dxe3 33. Bb4) 31... Qxf3+ $2 {[%emt 0:04:08]} (31... Qa2 $19 {has better winning chances.} 32. Bc1 Kc7 33. Rxg2 Rb8) 32. Kxf3 $17 {[%emt 0:00:20]} Nh4+ {[%emt 0:02:21]} 33. Ke4 $1 {[%emt 0:00:36] [#]} Nef5 {[%emt 0:01:52]} 34. Rg1 $11 {[%emt 0:00:39]} Nd6+ {[%emt 0:01:38]} 35. exd6 {[%emt 0:00:06] aiming for f5.} f5+ {[%emt 0:00:04]} 36. Ke5 {[%emt 0:00:41]} Nf3+ {[%emt 0:00:11][%mdl 64] Discovered Attack, Double Attack} 37. Kxe6 {[%emt 0:00:15] Rd1 would be deadly.} Nxg1 {[%emt 0:01:28]} 38. Nc4 {[%emt 0:00:46]} Nf3 {[%emt 0:02:07] [#]} ({Much less strong is} 38... Rxh3 39. Bxf5 Ne2 40. Ne5 Rh6+ 41. Ke7 Rdxd6 42. g5 $16) (38... fxg4 $11 {remains equal.} 39. hxg4 Rhe8+ 40. Kf7 Rh8) 39. Ba5 $1 $16 {[%emt 0:00:30]} Rde8+ {[%emt 0:00:08] [#]} 40. Kd7 $1 {[%emt 0:00:00] Some like it hot} Ka7 $2 {[%emt 0:00:00][%mdl 8192]} ({Of course not} 40... fxg4 41. Bc7+ Kb7 42. hxg4 $11) (40... Kb7 $16 {is tougher.}) 41. Bxf5 {[%emt 0:06:06]} (41. Kxc6 $142 Rc8+ 42. Bc7) 41... Re2 $2 {[%emt 0:18:15]} (41... Kb7 42. Bc7 Nh4) 42. Kc7 $18 {[%emt 0:07:32] White wants to mate with Bb6+. White is clearly winning.} Rb8 {[%emt 0:05:08]} 43. d7 {[%emt 0:01:34] Bb6+ would kill now.} Re7 {[%emt 0:04:45]} 44. Bb4 {[%emt 0:04:29] A strong pair of Bishops.} Rxd7+ {[%emt 0:01:59]} 45. Kxd7 {[%emt 0:00:58]} a5 {[%emt 0:02:00]} 46. Nxa5 {[%emt 0:00:46]} Kb6 {[%emt 0:00:57]} 47. Nxc6 {[%emt 0:01:11]} Rh8 {[%emt 0:01:17]} 48. Ne5 {[%emt 0:02:03]} Rxh3 {[%emt 0:01:09]} 49. g5 {[%emt 0:01:08]} Nxe5+ {[%emt 0:01:03]} 50. fxe5 {[%emt 0:00:32][%cal Bf4e5,Be5e6][%mdl 32]} Rf3 {[%emt 0:00:41] [#]} 51. e6 $1 {[%emt 0:00:46] What a bad dream for Black. A cool game by Garifullina.   Weighted Error Value: White=0.44/Black=0.62} 1-0